bitfinex-derivatives/quotes_ETHF0:USTF0_20251211
["timestamp","ask_amount","ask_price","bid_price","bid_amount"]
[1765479578218,6.29055781,3204.3,3204.2,0.15854972]
[1765479579114,6.29009228,3204.3,3204.2,0.15854972]
[1765479579314,4.61839325,3204.3,3204.2,0.15854972]
[1765479581813,5.2763,3204.0,3202.5,1.3601]
[1765479582012,4.0549553,3203.7,3203.6,2.346]
[1765479582217,4.6153,3204.1,3204.0,0.15605]
[1765479582818,4.6153,3204.1,3204.0,0.15865697]
[1765479586424,5.55956407,3204.1,3204.0,0.15865697]
[1765479589321,5.55956407,3204.1,3204.0,4.56405697]
[1765479589727,5.55956407,3204.1,3204.0,2.33045697]
[1765479590325,3.32636407,3204.1,3204.0,4.56405697]
[1765479590522,3.32636407,3204.1,3204.0,5.89485697]
[1765479590725,5.37716407,3204.1,3204.0,5.89485697]
[1765479591129,5.37716407,3204.1,3204.0,4.56405697]
[1765479591629,5.37716407,3204.1,3204.0,2.33045697]
[1765479592125,5.37716407,3204.1,3204.0,4.56405697]
[1765479592328,0.94426407,3204.1,3204.0,5.89485697]
[1765479592631,5.02196407,3204.1,3204.0,4.56405697]
[1765479593633,2.97116407,3204.1,3204.0,4.56405697]
[1765479593826,2.97116407,3204.1,3204.0,5.89485697]
[1765479594239,5.02196407,3204.1,3204.0,5.89485697]
[1765479595123,2.0269,3204.1,3204.0,5.89485697]
[1765479595323,0.00309325,3204.3,3204.2,4.56144]
[1765479596130,4.08079325,3204.3,3204.2,0.15604]
[1765479596331,4.08079325,3204.3,3204.2,2.32784]
[1765479596733,4.08079325,3204.3,3204.2,0.15604]
[1765479598339,4.08079325,3204.3,3204.2,2.32784]
[1765479598528,4.0777,3204.1,3204.0,0.00260697]
[1765479598736,4.0777,3204.1,3203.0,0.1561]
[1765479598737,4.0777,3203.1,3203.0,0.1561]
[1765479599438,5.02665655,3203.1,3203.0,0.1561]
[1765479599628,5.02665655,3203.1,3203.0,0.15929221]
[1765479599834,2.0269,3203.1,3203.0,4.56469221]
[1765479600136,4.0777,3203.5,3203.4,0.15608]
[1765479600337,5.026653,3203.5,3203.4,0.15608]
[1765479600534,2.975853,3203.5,3203.4,4.56148]
[1765479600730,5.2758,3204.0,3203.9,0.15606]
[1765479600937,0.94885642,3204.0,3203.9,4.56146]
[1765479601135,5.3221,3204.0,3203.9,0.15606]
[1765479601335,3.2952,3203.5,3203.4,0.15608]
[1765479601638,6.27122498,3203.5,3203.4,0.15608]
[1765479601833,2.0269,3203.8,3203.7,0.15607]
[1765479602034,5.02683046,3203.8,3203.7,4.56147]
[1765479602237,4.0777,3203.8,3203.7,0.15607]
[1765479602736,4.0777,3203.8,3203.0,0.00319221]
[1765479602737,4.0777,3203.1,3203.0,0.00319221]
[1765479602942,5.3221,3202.5,3202.4,0.15613]
[1765479603137,5.3221,3202.5,3201.5,1.56871387]
[1765479603433,4.0777,3202.4,3201.5,1.3308]
[1765479603735,1.2444,3203.5,3202.0,1.3308]
[1765479603942,2.0269,3203.5,3203.4,2.32788]
[1765479604142,4.0777,3203.5,3203.4,0.15608]
[1765479604339,2.03158238,3203.8,3203.7,0.15607]
[1765479604746,4.08238238,3203.8,3203.7,0.15607]
[1765479605432,0.00468238,3203.8,3203.7,4.56147]
[1765479606039,1.2444,3205.0,3204.2,4.56144]
[1765479606750,4.08079325,3204.3,3204.2,0.15604]
[1765479606946,2.02999325,3204.3,3204.2,0.15604]
[1765479607249,0.00309325,3204.3,3204.2,4.56144]
[1765479607546,0.00309325,3204.3,3204.2,2.32784]
[1765479607735,4.08079325,3204.3,3204.2,0.15604]
[1765479608349,0.00309325,3204.3,3204.2,4.56144]
[1765479609245,4.0777,3205.3,3205.2,0.15599]
[1765479609949,2.0269,3204.8,3204.7,0.15602]
[1765479610141,2.0269,3205.0,3204.9,0.15601]
[1765479610445,4.08151447,3205.0,3204.9,0.15933468]
[1765479610861,2.03071447,3205.0,3204.9,0.15933468]
[1765479611250,0.00381447,3205.0,3204.9,4.56473468]
[1765479611759,4.08151447,3205.0,3204.9,0.15933468]
[1765479612562,4.0777,3204.7,3204.6,0.00468238]
[1765479613259,4.0777,3204.7,3204.6,0.16070238]
[1765479613656,4.0777,3204.7,3204.6,0.16370669]
[1765479616162,4.0427,3204.1,3204.0,0.15605]
[1765479616757,1.2309,3204.0,3201.9,2.60393913]
[1765479617061,4.0427,3203.7,3203.6,0.15607]
[1765479617556,1.9638,3203.9,3203.8,0.15606]
[1765479617757,1.9638,3203.9,3203.8,2.10306]
[1765479617958,1.9638,3204.3,3204.2,0.15604]
[1765479618158,4.0427,3204.6,3203.4,1.1514]
[1765479618460,2.60393913,3205.1,3203.4,1.1514]
[1765479618461,4.0427,3204.8,3204.7,0.15602]
[1765479618658,2.05741447,3205.0,3204.9,0.15601]
[1765479618962,3.97921447,3205.0,3204.9,0.15601]
[1765479621365,3.76773913,3205.8,3204.0,1.1514]
[1765479621366,3.9754,3205.4,3205.3,0.15599]
[1765479622157,3.97855114,3205.4,3205.3,0.15860123]
[1765479622352,3.97855114,3205.4,3205.3,0.00261123]
[1765479622559,2.0536,3204.4,3204.3,0.15604]
[1765479622762,3.9754,3204.4,3204.3,0.15604]
[1765479623157,3.9754,3204.4,3203.4,1.1514]
[1765479623461,2.33736818,3204.2,3203.8,0.15606]
[1765479623661,2.33736818,3205.0,3204.0,1.1315]
[1765479623864,2.0536,3204.5,3204.4,0.15603]
[1765479624564,2.33736818,3205.0,3204.0,1.1315]
[1765479625060,0.00315114,3205.4,3205.3,4.0077]
[1765479625269,0.00315114,3205.4,3205.3,2.0229]
[1765479625462,0.00315114,3205.4,3205.3,4.16369]
[1765479630065,0.00468238,3205.7,3205.6,4.16368]
[1765479630468,3.9754,3207.1,3207.0,0.15591]
[1765479630770,3.9754,3207.5,3207.4,0.15589]
[1765479631175,3.97942917,3207.5,3207.4,0.1598892]
[1765479632270,3.9754,3207.2,3207.1,0.00468238]
[1765479632465,2.0536,3206.7,3206.6,0.15592]
[1765479633266,0.00402917,3207.5,3205.8,1.1315]
[1765479633267,2.33736818,3207.3,3206.9,0.15591]
[1765479633468,2.05762917,3207.5,3207.4,0.15589]
[1765479633774,2.34139735,3207.5,3207.1,0.1559]
[1765479633976,3.9754,3207.2,3207.1,0.1559]
[1765479634475,3.9754,3206.7,3206.6,0.15824298]
[1765479634773,6.31276818,3206.7,3206.6,0.15824298]
[1765479634974,6.31276818,3206.7,3205.9,0.00468238]
[1765479635272,2.0536,3206.4,3206.3,0.15594]
[1765479635471,3.9754,3206.4,3206.3,0.15594]
[1765479636175,3.9754,3206.4,3206.3,0.15834821]
[1765479636676,1.2097,3207.0,3206.6,0.15592]
[1765479636967,6.31276818,3206.7,3206.6,0.15592]
[1765479637167,2.0536,3206.4,3206.3,0.00240821]
[1765479637368,2.0536,3206.6,3206.5,0.15593]
[1765479638170,4.25916818,3206.9,3206.8,0.15592]
[1765479638371,2.0536,3206.4,3206.3,0.00240821]
[1765479638567,3.9754,3206.4,3206.3,0.15834821]
[1765479638873,5.1851,3206.4,3206.3,0.15834821]
[1765479639073,3.9754,3206.4,3206.3,0.15834821]
[1765479639873,5.1851,3206.4,3206.3,0.15834821]
[1765479640174,2.33736818,3206.5,3206.3,0.15594]
[1765479640473,2.33736818,3206.9,3206.6,0.15593]
[1765479640670,2.33736818,3206.9,3205.9,0.00468238]
[1765479640671,2.0536,3207.1,3207.0,0.1559]
[1765479640863,3.9754,3207.1,3207.0,0.1559]
[1765479641069,3.9754,3207.1,3207.0,0.15831727]
[1765479641575,2.0536,3207.1,3207.0,0.15831727]
[1765479641967,6.22895684,3209.6,3207.0,1.13391727]
[1765479641968,0.15584,3208.5,3207.0,1.13391727]
[1765479642172,3.97942917,3207.5,3207.4,0.15589]
[1765479642674,3.9754,3207.1,3207.0,0.00241727]
[1765479642975,1.2073,3207.0,3205.9,0.00468238]
[1765479643178,6.31276818,3206.6,3206.5,0.15593]
[1765479643372,2.0536,3206.9,3206.8,0.15592]
[1765479643875,3.9754,3206.9,3206.8,0.15592]
[1765479644367,6.31276818,3206.9,3205.9,0.00468238]
[1765479644566,6.31276818,3206.6,3206.5,0.15593]
[1765479644772,4.39096818,3206.8,3206.7,0.15592]
[1765479644973,6.31276818,3206.8,3206.7,0.15592]
[1765479645476,0.00402917,3207.5,3206.4,1.1315]
[1765479646073,3.97942917,3207.5,3207.4,0.15589]
[1765479646878,0.00402917,3207.5,3207.4,4.16359]
[1765479647677,3.9754,3208.4,3208.3,0.15584]
[1765479647973,2.0536,3208.4,3207.6,1.1315]
[1765479648174,5.1851,3208.8,3208.7,0.15582]
[1765479648377,3.9754,3208.8,3208.7,0.15582]
[1765479648579,2.05625811,3208.8,3208.7,0.15739261]
[1765479649182,1.77835811,3208.8,3208.7,0.15739261]
[1765479649668,0.00265811,3208.8,3208.7,1.96889261]
[1765479650071,0.00265811,3208.8,3208.7,3.91459261]
[1765479650780,0.00467501,3209.1,3209.0,3.91301]
[1765479651679,0.00862042,3209.1,3209.0,3.91301]
[1765479652980,3.70276818,3211.2,3209.9,0.15577]
[1765479653281,3.70276818,3211.2,3208.8,1.0808]
[1765479653282,1.7757,3209.3,3209.2,0.1558]
[1765479653681,2.33736818,3210.3,3208.8,1.0808]
[1765479653878,3.6591,3210.1,3210.0,0.15576]
[1765479654073,0.00315278,3210.1,3210.0,1.96726]
[1765479654280,3.66225278,3210.1,3210.0,0.15576]
[1765479654481,0.00315278,3210.1,3210.0,3.91296]
[1765479654786,3.66225278,3210.1,3210.0,0.15576]
[1765479655378,0.4524,3210.0,3208.8,1.0808]
[1765479655584,3.6591,3209.7,3209.6,0.15578]
[1765479656374,0.00315278,3210.1,3209.8,0.15577]
[1765479656774,1.7757,3209.9,3209.8,0.15577]
[1765479656979,1.77885278,3210.1,3210.0,0.15576]
[1765479657182,2.72325884,3210.1,3210.0,0.15576]
[1765479657383,4.60665884,3210.1,3210.0,0.15576]
[1765479658780,0.4197,3210.0,3208.8,1.0808]
[1765479658980,2.33736818,3209.7,3209.4,1.96729]
[1765479659182,2.33736818,3209.7,3209.5,0.15579]
[1765479659382,1.7757,3209.8,3209.7,0.15578]
[1765479659689,1.7757,3209.8,3209.7,1.96728]
[1765479659990,3.6591,3209.8,3209.7,0.15578]
[1765479660887,0.00315278,3210.1,3209.8,0.15577]
[1765479661086,3.6591,3209.9,3209.8,0.15577]
[1765479661278,4.60319521,3209.9,3209.8,0.15577]
[1765479661483,1.7757,3209.8,3209.7,0.15577]
[1765479661684,1.77885278,3210.1,3210.0,1.8115]
[1765479661886,0.94692447,3210.1,3210.0,3.7572]
[1765479662087,0.00315278,3210.1,3210.0,3.7572]
[1765479662588,0.00315278,3210.1,3210.0,4.99376]
[1765479664185,6.94248791,3210.1,3210.0,0.15576]
[1765479665194,0.00315278,3210.1,3210.0,4.99376]
[1765479665694,4.60172149,3210.9,3210.8,0.15572]
[1765479666288,0.94262149,3210.9,3210.8,1.96722]
[1765479666490,5.11870176,3211.8,3211.4,0.15569]
[1765479666797,3.6591,3211.5,3211.4,0.15857582]
[1765479667002,4.60171266,3211.5,3211.4,0.15857582]
[1765479667586,3.6591,3210.8,3210.7,0.15573]
[1765479667893,1.7757,3210.8,3210.7,1.96723]
[1765479668491,3.6591,3211.1,3211.0,0.15571]
[1765479668686,0.9424474,3211.1,3211.0,3.91291]
[1765479669093,4.6015474,3211.1,3211.0,0.15571]
[1765479669495,2.7181474,3211.1,3211.0,1.96721]
[1765479669797,1.7757,3211.7,3211.6,0.15568]
[1765479669993,0.94254301,3211.7,3211.6,3.91288]
[1765479670291,0.00393195,3211.8,3211.7,3.91288]
[1765479670491,2.33736818,3212.7,3212.6,0.15564]
[1765479670691,5.05541708,3212.7,3212.6,0.15564]
[1765479670898,6.93881708,3212.7,3212.6,0.15564]
[1765479671093,3.6591,3212.0,3211.9,0.15567]
[1765479671288,2.7180489,3212.0,3211.9,0.15567]
[1765479671493,0.94620415,3212.0,3211.9,3.91287]
[1765479671693,0.94620415,3212.0,3211.9,1.96717]
[1765479671893,0.94620415,3212.0,3211.9,3.91287]
[1765479672398,4.60530415,3212.0,3211.9,0.15567]
[1765479672592,2.72190415,3212.0,3211.9,1.96717]
[1765479672796,3.6591,3211.7,3211.6,0.00467501]
[1765479672995,3.6591,3211.3,3211.2,0.14945534]
[1765479673190,1.7757,3210.8,3209.4,1.0808]
[1765479673396,2.7180489,3210.8,3210.7,0.15971472]
[1765479673594,4.6014489,3210.8,3210.7,0.15971472]
[1765479673900,2.7180489,3210.8,3210.7,0.15971472]
[1765479674096,4.6014489,3210.8,3210.7,0.15971472]
[1765479674306,0.9423489,3210.8,3210.7,1.95121472]
[1765479674507,0.9423489,3210.8,3210.7,3.73361472]
[1765479675901,0.9423489,3210.8,3210.7,9.73361472]
[1765479676201,2.21300919,3211.8,3211.5,0.15569]
[1765479676401,3.4951,3211.6,3211.5,0.15569]
[1765479676602,3.4951,3211.6,3210.7,0.00398472]
[1765479676900,3.49596099,3211.5,3211.4,0.15569]
[1765479677296,3.4951,3211.5,3211.4,0.15569]
[1765479678502,1.8323,3211.1,3211.0,0.15571]
[1765479679001,3.49614879,3211.3,3211.2,0.1557]
[1765479679197,1.66614879,3211.4,3211.3,3.7755]
[1765479679603,1.66614879,3211.6,3211.5,3.6198]
[1765479679799,1.66614879,3211.7,3211.6,3.77548]
[1765479680005,3.6562,3211.9,3211.8,0.15567]
[1765479680396,0.7244,3211.8,3210.7,0.00398472]
[1765479680601,5.32322115,3211.7,3211.6,0.15568]
[1765479681103,3.6562,3211.7,3211.6,0.15568]
[1765479681299,5.32322115,3211.7,3211.6,0.15568]
[1765479681504,3.6562,3211.7,3211.6,0.15568]
[1765479681700,5.32364005,3211.7,3211.6,0.15568]
[1765479681897,3.49744005,3211.7,3211.6,0.15568]
[1765479682098,1.66744005,3211.9,3211.7,3.77548]
[1765479682295,0.00385525,3212.0,3211.9,3.77547]
[1765479683309,3.66005525,3212.0,3211.9,0.15567]
[1765479683498,0.00385525,3212.0,3211.9,2.00487]
[1765479683704,0.00385525,3212.0,3211.9,3.77547]
[1765479684007,0.00385525,3212.0,3211.9,2.00487]
[1765479684203,3.66005525,3212.0,3211.9,0.15567]
[1765479684804,3.6562,3211.3,3211.2,0.1557]
[1765479685112,1.66794323,3211.8,3210.7,0.00398472]
[1765479685309,1.83,3211.8,3211.7,0.15568]
[1765479685511,3.6562,3211.8,3211.7,0.15568]
[1765479685701,3.6562,3211.7,3211.6,0.15568]
[1765479686102,3.6562,3211.7,3210.7,0.00398472]
[1765479686307,3.6562,3211.1,3211.0,0.15571]
[1765479686510,1.66794323,3211.7,3210.7,0.00398472]
[1765479686708,1.83,3211.8,3211.7,0.15568]
[1765479687013,0.00385525,3212.0,3211.9,2.00487]
[1765479687310,0.00385525,3212.0,3211.9,3.77547]
[1765479688115,0.90882512,3212.0,3211.9,3.77547]
[1765479688415,2.73882512,3212.0,3211.9,0.15567]
[1765479688715,4.56502512,3212.0,3211.9,0.15567]
[1765479688910,2.73882512,3212.0,3211.9,0.15567]
[1765479689110,4.56502512,3212.0,3211.9,0.15567]
[1765479689519,0.90882512,3212.0,3211.9,3.77547]
[1765479689911,1.66794323,3212.8,3212.7,0.15563]
[1765479690105,0.90541578,3212.8,3212.7,2.00483]
[1765479690619,0.90541578,3212.8,3212.7,3.77543]
[1765479690914,4.56161578,3212.8,3212.7,0.15563]
[1765479691110,4.5646712,3212.8,3212.7,0.15563]
[1765479691310,0.9084712,3212.8,3212.7,0.15563]
[1765479691513,4.5646712,3212.8,3212.7,0.15563]
[1765479691714,3.6562,3212.5,3212.4,0.00467501]
[1765479691918,4.56161578,3212.5,3212.4,0.00467501]
[1765479692419,0.90541578,3212.5,3212.4,3.78011501]
[1765479692911,0.90541578,3212.5,3212.4,0.16031501]
[1765479693117,4.56161578,3212.5,3212.4,0.16031501]
[1765479693515,0.90541578,3212.5,3212.4,3.78011501]
[1765479693712,0.90541578,3212.5,3212.4,2.00951501]
[1765479693916,4.56161578,3212.5,3212.4,0.16031501]
[1765479694117,1.83,3212.0,3211.9,0.15567]
[1765479694312,2.73541578,3212.0,3211.9,0.15567]
[1765479694507,4.56161578,3212.0,3211.9,0.15567]
[1765479694812,4.56161578,3212.0,3210.8,0.23932353]
[1765479695020,2.73541578,3211.9,3211.8,0.15567]
[1765479695318,4.56161578,3211.9,3211.1,0.00467501]
[1765479695515,0.90541578,3211.8,3211.1,0.00467501]
[1765479695714,0.90541578,3211.7,3211.6,3.77548]
[1765479696918,0.90541578,3211.7,3211.6,0.15568]
[1765479697114,4.56161578,3211.7,3211.6,0.15568]
[1765479697420,1.83,3211.2,3211.1,0.00467501]
[1765479697618,1.0114,3211.6,3211.1,0.00467501]
[1765479697619,0.00467501,3211.5,3211.4,0.15569]
[1765479697919,0.90439842,3211.5,3211.4,3.77549]
[1765479698120,0.00467501,3211.5,3211.4,3.77549]
[1765479699418,0.00467501,3211.5,3211.4,2.00489]
[1765479699620,0.00467501,3211.5,3211.4,3.77549]
[1765479700618,0.00305542,3212.8,3212.7,0.15563]
[1765479700821,0.9028363,3212.8,3212.7,0.15563]
[1765479701621,0.9028363,3212.8,3212.7,2.00483]
[1765479701920,0.00305542,3212.8,3212.7,3.77543]
[1765479702122,0.00305542,3212.8,3212.7,0.15563]
[1765479702318,0.00305542,3212.8,3212.7,2.00483]
[1765479703921,0.00305542,3212.8,3212.7,3.77543]
[1765479705126,0.00467501,3213.1,3213.0,3.77542]
[1765479705321,3.66087501,3213.1,3213.0,0.15562]
[1765479705523,0.00467501,3213.1,3213.0,4.82602]
[1765479706123,0.00721671,3213.1,3213.0,4.82903991]
[1765479706318,3.6562,3214.0,3213.9,0.15557]
[1765479706527,1.83,3214.2,3214.1,0.15556]
[1765479706728,3.6562,3214.5,3213.0,1.05361991]
[1765479706926,3.6562,3214.5,3213.1,3.57314512]
[1765479707123,3.6562,3214.7,3214.6,0.15554]
[1765479707326,3.6562,3214.4,3214.3,0.00466715]
[1765479707530,0.00369652,3214.7,3214.3,0.00466715]
[1765479707825,0.00369652,3214.7,3214.6,3.77534]
[1765479708415,1.0114,3216.0,3214.8,1.0506]
[1765479708823,3.5409,3216.0,3215.9,0.15548]
[1765479709024,1.845597,3216.0,3215.9,0.15548]
[1765479709526,0.01857996,3216.0,3215.9,0.15927106]
[1765479709734,9.31117996,3216.0,3215.1,0.15551]
[1765479709917,3.29558296,3216.0,3215.1,0.15551]
[1765479710117,0.015597,3215.6,3215.1,0.15551]
[1765479710524,0.015597,3215.6,3215.2,0.15551]
[1765479710726,0.015597,3215.6,3215.2,0.15902043]
[1765479710727,3.2926,3215.3,3215.2,0.15902043]
[1765479710930,3.2926,3214.5,3214.4,0.15554]
[1765479711227,3.308197,3214.5,3214.4,0.15554]
[1765479711527,4.304,3214.4,3214.3,0.00466715]
[1765479711724,4.304,3214.4,3213.7,0.15558]
[1765479711924,3.2926,3213.8,3213.7,0.15836711]
[1765479712135,0.015597,3213.8,3213.7,0.00278711]
[1765479712336,0.015597,3213.8,3213.7,1.59148711]
[1765479712536,0.015597,3213.8,3213.7,3.25208711]
[1765479712837,0.015597,3213.8,3213.7,4.42646711]
[1765479713335,0.015597,3213.8,3213.7,0.15836711]
[1765479713530,2.70169306,3215.8,3213.7,1.02158711]
[1765479713734,3.2926,3214.6,3214.5,0.15554]
[1765479714031,3.2926,3214.6,3213.7,0.00278711]
[1765479714237,3.2926,3214.6,3213.7,1.02158711]
[1765479714433,1.5817,3214.6,3213.7,1.02158711]
[1765479714636,1.5817,3214.6,3214.5,0.15554]
[1765479715133,2.59033292,3215.5,3214.8,0.15553]
[1765479715333,1.0327,3215.8,3215.0,0.15552]
[1765479715530,1.0327,3215.8,3215.2,0.15551]
[1765479715736,1.0327,3215.8,3215.3,0.1555]
[1765479716038,1.5817,3215.4,3215.3,0.1555]
[1765479716235,3.2926,3215.4,3215.3,0.1555]
[1765479717034,1.0327,3215.8,3215.3,0.1555]
[1765479717229,1.5929156,3215.4,3215.3,0.1555]
[1765479717426,3.3038156,3215.4,3215.3,0.1555]
[1765479717627,3.2926,3215.2,3215.1,0.00466715]
[1765479718336,3.3038156,3215.2,3215.1,0.00466715]
[1765479718637,3.2926,3215.0,3213.7,1.02158711]
[1765479718837,3.2926,3215.0,3214.3,0.15555]
[1765479719138,3.77851292,3215.8,3214.8,0.15553]
[1765479719332,3.77851292,3215.8,3214.8,0.1443144]
[1765479719530,3.2926,3214.9,3214.8,0.1443144]
[1765479719729,0.2562,3215.1,3214.5,0.00466715]
[1765479719932,0.00466715,3215.2,3214.7,0.15553]
[1765479720133,3.2926,3214.8,3214.7,0.15553]
[1765479720438,1.5817,3214.6,3214.5,0.00466715]
[1765479720639,2.85503292,3215.1,3214.5,0.00466715]
[1765479720842,0.00466715,3215.2,3214.6,0.15553]
[1765479721032,0.00466715,3215.2,3214.5,0.00466715]
[1765479721033,3.2926,3214.6,3214.5,0.00466715]
[1765479721236,2.59033292,3214.8,3214.1,0.15556]
[1765479721433,2.59033292,3214.8,3214.2,0.15556]
[1765479721633,0.2724,3215.1,3214.4,0.15554]
[1765479721839,1.5817,3214.6,3214.5,0.15554]
[1765479722036,0.2724,3215.1,3214.5,0.15554]
[1765479722234,3.2926,3214.6,3214.5,0.00466715]
[1765479722635,3.2926,3214.6,3214.5,0.16020715]
[1765479722847,1.5817,3215.0,3214.9,0.15552]
[1765479723331,3.2926,3214.6,3214.5,0.00466715]
[1765479724440,3.2926,3214.6,3214.5,0.16020715]
[1765479726146,1.5817,3214.6,3214.5,0.16020715]
[1765479726442,1.5817,3214.9,3214.8,0.15553]
[1765479726644,3.2926,3214.9,3214.8,0.15553]
[1765479727347,1.58636715,3215.2,3215.1,0.15551]
[1765479727640,3.29726715,3215.2,3215.1,0.15551]
[1765479728440,3.29726715,3215.2,3215.1,3.40481]
[1765479728441,0.00466715,3215.2,3215.1,3.40481]
[1765479729248,0.00466715,3215.2,3215.1,1.74421]
[1765479729840,3.29726715,3215.2,3215.1,0.15551]
[1765479730042,0.00466715,3215.2,3215.1,3.40481]
[1765479730846,0.00298296,3216.0,3215.9,0.15548]
[1765479731242,3.2926,3215.5,3214.9,3.45800383]
[1765479731442,3.2926,3215.5,3214.8,1.0188]
[1765479731645,3.29726715,3215.5,3214.8,1.0188]
[1765479732546,3.29726715,3215.5,3215.4,0.1555]
[1765479732746,3.2926,3214.6,3214.5,0.00466715]
[1765479732947,1.5817,3214.6,3214.5,0.00466715]
[1765479733142,0.9902,3215.4,3215.2,0.15551]
[1765479733348,3.2926,3215.3,3215.2,0.15551]
[1765479733548,3.2926,3215.3,3214.5,0.00466715]
[1765479734650,0.89756688,3215.2,3214.5,0.00466715]
[1765479734850,0.9902,3215.4,3214.5,0.00466715]
[1765479735046,1.5103,3215.2,3214.5,0.00466715]
[1765479735346,3.1329,3215.2,3215.1,0.15551]
[1765479735550,4.03110454,3215.2,3215.1,1e-05]
[1765479735854,4.03110454,3215.2,3214.5,0.00466715]
[1765479736154,3.1329,3214.6,3214.5,0.00466715]
[1765479737249,3.1329,3214.9,3214.8,0.15553]
[1765479737552,3.1329,3215.4,3215.3,0.1555]
[1765479737952,1.5103,3215.4,3215.3,0.1555]
[1765479738155,0.00466715,3215.5,3215.4,0.1555]
[1765479739452,3.12036715,3215.5,3215.4,0.1555]
[1765479740647,1.51736715,3215.5,3215.4,0.1555]
[1765479740853,3.12036715,3215.5,3215.4,0.1555]
[1765479741254,3.12036715,3215.5,3214.8,0.9762]
[1765479742556,3.12036715,3215.5,3215.4,0.1555]
[1765479743247,3.12036715,3215.5,3214.5,0.00466715]
[1765479743452,3.1157,3215.2,3215.1,0.15551]
[1765479744048,3.1157,3215.2,3214.5,0.00466715]
[1765479744248,3.1157,3214.6,3214.5,0.16020715]
[1765479744858,3.1157,3214.6,3213.0,1.0188]
[1765479745160,3.1157,3214.4,3214.3,0.15555]
[1765479745654,3.1157,3213.8,3213.7,0.00278711]
[1765479745859,6.6080604,3213.8,3211.2,0.9762]
[1765479746061,3.1157,3213.5,3213.4,0.00466715]
[1765479746460,10.01689633,3213.5,3211.2,0.9762]
[1765479746659,5.44177124,3212.5,3212.4,0.15564]
[1765479746961,0.9587,3212.4,3211.2,0.9762]
[1765479747165,5.44177124,3211.7,3210.6,0.9762]
[1765479747659,1.5127,3211.2,3211.1,0.15571]
[1765479747862,0.00466715,3211.5,3211.2,0.1557]
[1765479748358,5.44177124,3211.3,3211.2,0.1557]
[1765479748754,5.44177124,3211.3,3211.1,0.00346455]
[1765479748755,3.1157,3211.2,3211.1,0.00346455]
[1765479749265,1.5127,3211.2,3211.1,0.00346455]
[1765479749465,3.1157,3211.0,3210.8,0.00466715]
[1765479749658,3.1157,3210.9,3210.8,0.00466715]
[1765479750459,2.32607124,3211.2,3210.8,0.00466715]
[1765479750664,2.32607124,3211.2,3210.8,0.16271203]
[1765479750862,3.1157,3210.9,3210.8,0.16271203]
[1765479751359,1.5127,3210.1,3210.0,0.15576]
[1765479751565,3.1157,3210.1,3210.0,0.15576]
[1765479751962,1.5127,3210.1,3210.0,0.15576]
[1765479752265,3.1157,3210.1,3210.0,0.15576]
[1765479752465,3.11965927,3210.1,3210.0,0.158761]
[1765479752961,3.1157,3209.8,3209.7,0.00466715]
[1765479753178,5.44177124,3209.8,3209.3,0.15579]
[1765479753354,5.44177124,3209.4,3208.5,0.15583]
[1765479753553,5.44177124,3209.4,3207.4,0.9762]
[1765479753554,2.32607124,3209.0,3208.6,0.15583]
[1765479753758,2.32607124,3209.4,3208.7,0.15582]
[1765479753958,2.32607124,3209.0,3208.7,0.15858986]
[1765479754159,2.32607124,3209.0,3208.7,0.00276986]
[1765479755059,0.00467472,3209.2,3208.8,0.15582]
[1765479755364,0.00467472,3209.2,3208.7,0.00276986]
[1765479755670,0.00467472,3209.2,3208.8,0.9762]
[1765479756665,1.51737472,3209.2,3209.1,0.15581]
[1765479758073,0.00467472,3209.2,3209.1,0.15581]
[1765479758570,0.00467472,3209.2,3209.1,1.76871]
[1765479759473,0.00467472,3209.2,3209.1,3.31021]
[1765479760076,2.32607124,3210.6,3210.0,0.15576]
[1765479760372,1.51665927,3210.1,3210.0,0.15576]
[1765479760765,3.11965927,3210.1,3210.0,0.15576]
[1765479762873,0.00395927,3210.1,3210.0,0.15576]
[1765479763071,0.00395927,3210.1,3210.0,4.28636]
[1765479764570,1.5127,3211.1,3211.0,0.15571]
[1765479764768,3.1157,3211.1,3211.0,0.15571]
[1765479765479,5.44474985,3211.1,3211.0,0.15955523]
[1765479766082,3.1157,3210.8,3210.7,0.16040472]
[1765479767084,3.1157,3210.8,3210.7,0.16431424]
[1765479767380,3.1157,3210.8,3209.4,0.9762]
[1765479767684,1.5127,3210.3,3209.4,0.9762]
[1765479768388,1.5127,3210.3,3209.5,0.00467472]
[1765479768590,1.5127,3210.3,3210.2,0.15575]
[1765479769284,3.1157,3210.3,3210.2,0.15575]
[1765479769482,1.5368,3209.6,3209.5,0.00467472]
[1765479769884,1.5368,3209.6,3209.5,0.16046472]
[1765479770484,1.5368,3209.9,3209.8,0.15577]
[1765479770687,3.0618,3210.4,3210.3,0.15575]
[1765479770989,5.38787124,3210.4,3210.3,0.15575]
[1765479771687,1.5368,3210.4,3210.3,0.15575]
[1765479771891,2.32607124,3210.8,3210.3,1.71765]
[1765479772093,3.0618,3210.4,3210.3,0.15575]
[1765479773295,3.95996467,3210.4,3210.3,0.15575]
[1765479774692,6.28603591,3210.4,3210.3,0.15575]
[1765479774887,6.28603591,3210.4,3209.5,0.00467472]
[1765479775193,3.0618,3210.1,3210.0,0.15576]
[1765479775388,3.95996467,3210.1,3210.0,0.15576]
[1765479776591,0.89816467,3210.1,3210.0,1.71766]
[1765479776797,0.89816467,3210.1,3210.0,4.09336]
[1765479778291,2.43496467,3210.1,3210.0,1.71766]
[1765479778495,3.0618,3209.6,3209.5,0.00467472]
[1765479778695,6.28603591,3209.6,3209.5,0.00467472]
[1765479778996,3.0618,3209.0,3208.9,0.15581]
[1765479779197,3.95996467,3209.0,3208.9,0.15581]
[1765479781096,6.1893745,3209.0,3208.9,0.15581]
[1765479781299,2.57052005,3209.0,3208.9,3.16321]
[1765479781499,0.89816467,3209.0,3208.9,3.16321]
[1765479782895,0.40492963,3209.0,3208.9,9.16321]
[1765479783199,3.06647472,3209.3,3209.2,0.1558]
[1765479783696,1.54147472,3209.3,3209.2,1.7177]
[1765479783902,0.00467472,3209.3,3209.2,3.1632]
[1765479784408,1.67221567,3210.1,3210.0,0.15576]
[1765479784597,1.67221567,3210.2,3210.1,1.71766]
[1765479784901,3.0618,3210.2,3210.1,0.15576]